fUSD/lending_fUSD_20240729
["ID","MTS","AMOUNT","RATE_DAILY","PERIOD"]
[333563418,1722247851640,-500.0,0.00010997,2]
[333563419,1722247851650,-500.0,0.00010997,2]
[333563420,1722247851663,-500.0,0.00010997,2]
[333563421,1722247851677,-500.0,0.00010997,2]
[333563422,1722247851686,-500.0,0.00010997,2]
[333563423,1722247851695,-500.0,0.00010997,2]
[333563424,1722247851704,-500.0,0.00010997,2]
[333563425,1722247851714,-170.52,0.00010997,2]
[333563426,1722247851723,-411.35,0.00010997,2]
[333563427,1722247851732,-500.0,0.00010997,2]
[333563428,1722247851741,-363.28,0.00010997,2]
[333563429,1722247851750,-500.0,0.00010997,2]
[333563430,1722247851759,-500.0,0.00010997,2]
[333563431,1722247851769,-1000.02,0.00010997,2]
[333563432,1722247851778,-500.0,0.00010997,2]
[333563433,1722247851788,-1000.02,0.00010997,2]
[333563434,1722247851797,-500.0,0.00010997,2]
[333563435,1722247851807,-337.42,0.00010997,2]
[333563436,1722247851817,-500.0,0.00010997,2]
[333563437,1722247851826,-193.3,0.00010997,2]
[333563438,1722247851836,-1000.02,0.00010997,2]
[333563439,1722247851845,-500.0,0.00010997,2]
[333563440,1722247851855,-500.0,0.00010997,2]
[333563441,1722247851864,-1000.02,0.00010997,2]
[333563442,1722247851874,-500.0,0.00010997,2]
[333563443,1722247851883,-500.0,0.00010997,2]
[333563444,1722247851892,-500.0,0.00010997,2]
[333563445,1722247851903,-500.0,0.00010997,2]
[333563446,1722247851913,-500.0,0.00010997,2]
[333563447,1722247851923,-500.0,0.00010997,2]
[333563448,1722247851936,-500.0,0.00010997,2]
[333563449,1722247851946,-500.0,0.00010997,2]
[333563450,1722247851956,-500.0,0.00010997,2]
[333563451,1722247851966,-500.0,0.00010997,2]
[333563452,1722247851978,-215.5927058,0.00010997,2]
[333563453,1722247851988,-502.0179876,0.00010997,2]
[333563454,1722247851998,-500.0,0.00010997,2]
[333563455,1722247852010,-500.0,0.00010997,2]
[333563456,1722247852021,-500.0,0.00010997,2]
[333563457,1722247852031,-500.0,0.00010997,2]
[333563458,1722247852041,-515.52879607,0.00010997,2]
[333563459,1722247852051,-500.0,0.00010997,2]
[333563460,1722247852062,-500.0,0.00010997,2]
[333563461,1722247852072,-500.0,0.00010997,2]
[333563462,1722247852082,-277.7,0.00010997,2]
[333563463,1722247852093,-625.08,0.00010997,2]
[333563464,1722247852103,-500.0,0.00010997,2]
[333563465,1722247852113,-355.62,0.00010997,2]
[333563466,1722247852123,-500.0,0.00010997,2]
[333563467,1722247852132,-595.48,0.00010997,2]
[333563468,1722247852142,-500.0,0.00010997,2]
[333563469,1722247852153,-500.0,0.00010997,2]
[333563470,1722247852162,-500.0,0.00010997,2]
[333563471,1722247852172,-500.0,0.00010997,2]
[333563472,1722247852183,-500.0,0.00010997,2]
[333563473,1722247852193,-500.0,0.00010997,2]
[333563474,1722247852204,-500.0,0.00010997,2]
[333563475,1722247852212,-500.0,0.00010997,2]
[333563476,1722247852222,-500.0,0.00010997,2]
[333563477,1722247852232,-345.84,0.00010997,2]
[333563478,1722247852241,-500.0,0.00010997,2]
[333563479,1722247852251,-500.0,0.00010997,2]
[333563480,1722247852260,-381.3,0.00010997,2]
[333563481,1722247852270,-500.0,0.00010997,2]
[333563482,1722247852279,-500.0,0.00010997,2]
[333563483,1722247852289,-500.0,0.00010997,2]
[333563484,1722247852298,-500.0,0.00010997,2]
[333563485,1722247852307,-500.0,0.00010997,2]
[333563486,1722247852316,-500.0,0.00010997,2]
[333563487,1722247852325,-500.0,0.00010997,2]
[333563488,1722247852334,-442.12,0.00010997,2]
[333563489,1722247852343,-500.0,0.00010997,2]
[333563490,1722247852353,-500.0,0.00010997,2]
[333563491,1722247852363,-500.0,0.00010997,2]
[333563492,1722247852372,-495.36,0.00010997,2]
[333563493,1722247852382,-500.0,0.00010997,2]
[333563494,1722247852392,-500.0,0.00010997,2]
[333563495,1722247852402,-500.0,0.00010997,2]
[333563496,1722247852412,-500.0,0.00010997,2]
[333563497,1722247852422,-500.0,0.00010997,2]
[333563498,1722247852433,-500.0,0.00010997,2]
[333563499,1722247852444,-495.8,0.00010997,2]
[333563500,1722247852454,-500.0,0.00010997,2]
[333563501,1722247852463,-500.0,0.00010997,2]
[333563502,1722247852473,-275.2,0.00010997,2]
[333563503,1722247852483,-500.0,0.00010997,2]
[333563504,1722247852492,-500.0,0.00010997,2]
[333563505,1722247852501,-500.0,0.00010997,2]
[333563506,1722247852511,-169.8,0.00010997,2]
[333563507,1722247852520,-423.46,0.00010997,2]
[333563508,1722247852530,-253.25,0.00010997,2]
[333563509,1722247852539,-388.35,0.00010997,2]
[333563510,1722247852548,-500.0,0.00010997,2]
[333563511,1722247852558,-500.0,0.00010997,2]
[333563512,1722247852567,-500.0,0.00010997,2]
[333563513,1722247852577,-500.0,0.00010997,2]
[333563514,1722247852586,-500.0,0.00010997,2]
[333563515,1722247852596,-500.0,0.00010997,2]
[333563516,1722247852605,-500.0,0.00010997,2]
[333563517,1722247852614,-500.0,0.00010997,2]
[333563518,1722247852624,-207.71,0.00010997,2]
[333563519,1722247852633,-500.0,0.00010997,2]
[333563520,1722247852643,-500.0,0.00010997,2]
[333563521,1722247852652,-500.0,0.00010997,2]
[333563522,1722247852661,-500.0,0.00010997,2]
[333563523,1722247852670,-500.0,0.00010997,2]
[333563524,1722247852679,-500.0,0.00010997,2]
[333563525,1722247852689,-500.0,0.00010997,2]
[333563526,1722247852698,-500.0,0.00010997,2]
[333563527,1722247852707,-530.24,0.00010997,2]
[333563528,1722247852716,-488.68,0.00010997,2]
[333563529,1722247852725,-500.0,0.00010997,2]
[333563530,1722247852734,-500.0,0.00010997,2]
[333563531,1722247852743,-500.0,0.00010997,2]
[333563532,1722247852752,-519.8150037,0.00010997,2]
[333563533,1722247852762,-500.0,0.00010997,2]
[333563534,1722247852771,-500.0,0.00010997,2]
[333563535,1722247852780,-500.0,0.00010997,2]
[333563536,1722247852790,-427.96,0.00010997,2]
[333563537,1722247852800,-338.19336483,0.00010997,2]
[333563538,1722247852809,-500.0,0.00010997,2]
[333563539,1722247852818,-374.12,0.00010997,2]
[333563540,1722247852829,-188.14,0.00010997,2]
[333563541,1722247852838,-500.0,0.00010997,2]
[333563542,1722247852848,-164.4,0.00010997,2]
[333563543,1722247852858,-441.56,0.00010997,2]
[333563544,1722247852868,-500.0,0.00010997,2]
[333563545,1722247852878,-288.3,0.00010997,2]
[333563546,1722247852888,-500.0,0.00010997,2]
[333563547,1722247852897,-500.0,0.00010997,2]
[333563548,1722247852908,-500.0,0.00010997,2]
[333563549,1722247852917,-500.0,0.00010997,2]
[333563550,1722247852928,-500.0,0.00010997,2]
[333563551,1722247852941,-500.0,0.00010997,2]
[333563552,1722247852951,-500.0,0.00010997,2]
[333563553,1722247852960,-500.0,0.00010997,2]
[333563554,1722247852971,-500.0,0.00010997,2]
[333563555,1722247852980,-500.0,0.00010997,2]
[333563556,1722247852989,-500.0,0.00010997,2]
[333563557,1722247852998,-500.0,0.00010997,2]
[333563558,1722247853009,-500.0,0.00010997,2]
[333563559,1722247853018,-500.0,0.00010997,2]
[333563560,1722247853028,-500.0,0.00010997,2]
[333563561,1722247853037,-500.0,0.00010997,2]
[333563562,1722247853047,-500.0,0.00010997,2]
[333563563,1722247853056,-500.0,0.00010997,2]
[333563564,1722247853066,-500.0,0.00010997,2]
[333563565,1722247853076,-455.23,0.00010997,2]
[333563566,1722247853085,-500.0,0.00010997,2]
[333563567,1722247853095,-500.0,0.00010997,2]
[333563568,1722247853104,-500.0,0.00010997,2]
[333563569,1722247853114,-500.0,0.00010997,2]
[333563570,1722247853123,-500.0,0.00010997,2]
[333563571,1722247853132,-500.0,0.00010997,2]
[333563572,1722247853142,-500.0,0.00010997,2]
[333563573,1722247853152,-500.0,0.00010997,2]
[333563574,1722247853161,-500.0,0.00010997,2]
[333563575,1722247853170,-500.0,0.00010997,2]
[333563576,1722247853179,-500.0,0.00010997,2]
[333563577,1722247853189,-500.0,0.00010997,2]
[333563578,1722247853198,-500.0,0.00010997,2]
[333563579,1722247853207,-500.0,0.00010997,2]
[333563580,1722247853216,-446.98,0.00010997,2]
[333563581,1722247853226,-616.07,0.00010997,2]
[333563582,1722247853235,-500.0,0.00010997,2]
[333563583,1722247853245,-500.0,0.00010997,2]
[333563584,1722247853254,-500.0,0.00010997,2]
[333563585,1722247853263,-500.0,0.00010997,2]
[333563586,1722247853272,-500.0,0.00010997,2]
[333563587,1722247853281,-500.0,0.00010997,2]
[333563588,1722247853290,-500.0,0.00010997,2]
[333563589,1722247853347,-500.0,0.00010997,2]
[333563590,1722247853356,-500.0,0.00010997,2]
[333563591,1722247853365,-428.32,0.00010997,2]
[333563592,1722247853374,-500.0,0.00010997,2]
[333563593,1722247853384,-500.0,0.00010997,2]
[333563594,1722247853393,-500.0,0.00010997,2]
[333563595,1722247853402,-198.55,0.00010997,2]
[333563596,1722247853411,-500.0,0.00010997,2]
[333563597,1722247853420,-500.0,0.00010997,2]
[333563598,1722247853430,-500.0,0.00010997,2]
[333563599,1722247853439,-556.88,0.00010997,2]
[333563600,1722247853448,-500.0,0.00010997,2]
[333563601,1722247853457,-208.68,0.00010997,2]
[333563602,1722247853467,-318.31304273,0.00010997,2]
[333563603,1722247853475,-477.8425419,0.00010997,2]
[333563604,1722247853515,-22.1574581,0.00010997,2]
[333563605,1722247853524,-500.0,0.00010997,2]
[333563606,1722247853533,-158.33574348,0.00010997,2]
[333563607,1722247853550,-360.02425652,0.00010997,2]
[333563608,1722247853559,-221.72,0.00010997,2]
[333563609,1722247853568,-218.89900224,0.00010997,2]
[333563610,1722247853577,-176.26,0.00010997,2]
[333563611,1722247853586,-216.38332136,0.00010997,2]
[333563613,1722247951401,150.0,0.00016131,120]
[333563614,1722248011395,150.0,0.0001587,120]
[333563615,1722248056490,737.62607,0.00020005,120]
[333563616,1722248071329,150.0,0.00016734,120]
[333563617,1722248106627,11028.0,0.0002,90]
[333563627,1722248425427,3000.0,0.0002,90]
[333563632,1722248741048,-165.33,7.512e-05,2]
[333563633,1722248741069,-991.0,8.218e-05,2]
[333563634,1722248741090,-181.34243174,8.219e-05,2]
[333563635,1722248741112,-369.39,8.219e-05,2]
[333563636,1722248741137,-200.0,9.32e-05,2]
[333563637,1722248741157,-250.0,9.333e-05,2]
[333563638,1722248741183,-1000.0,9.379e-05,2]
[333563639,1722248741205,-300.0,9.403e-05,2]
[333563640,1722248741225,-10000.0,9.404e-05,2]
[333563641,1722248741245,-1244.53,9.404e-05,2]
[333563642,1722248741270,-337.46431487,9.836e-05,2]
[333563644,1722248792015,-411.62,0.00010014,2]
[333563645,1722248792039,-411.62,0.00010017,2]
[333563646,1722248792063,-411.62,0.0001002,2]
[333563647,1722248792087,-411.62,0.00010022,2]
[333563648,1722248792111,-411.62,0.00010025,2]
[333563649,1722248792134,-411.62,0.00010028,2]
[333563650,1722248792160,-411.62,0.0001003,2]
[333563651,1722248792183,-411.62,0.00010033,2]
[333563652,1722248792208,-411.62,0.00010035,2]
[333563653,1722248792233,-411.62,0.00010038,2]
[333563654,1722248792257,-411.62,0.00010041,2]
[333563655,1722248792280,-411.62,0.00010043,2]
[333563656,1722248792303,-411.62,0.00010046,2]
[333563657,1722248792330,-411.62,0.00010049,2]
[333563658,1722248792353,-150.0,0.00010049,2]
[333563659,1722248792376,-411.62,0.00010051,2]
[333563660,1722248792402,-411.62,0.00010054,2]
[333563661,1722248792425,-839.03,0.00010055,2]
[333563662,1722248792448,-411.62,0.00010057,2]
[333563663,1722248792474,-411.62,0.00010059,2]
[333563664,1722248792498,-411.62,0.00010062,2]
[333563665,1722248792522,-411.62,0.00010064,2]
[333563666,1722248792544,-150.0,0.00010192,2]
[333563667,1722248792568,-150.0,0.00010192,2]
[333563668,1722248792591,-355.99,0.00010192,2]
[333563669,1722248792614,-150.0,0.00010192,2]
[333563670,1722248792637,-1052.66,0.00010192,2]
[333563671,1722248792661,-150.0,0.00010192,2]
[333563672,1722248792683,-355.99,0.00010192,2]
[333563673,1722248792708,-150.0,0.00010192,2]
[333563674,1722248792738,-355.99,0.00010192,2]
[333563675,1722248792761,-353.34,0.00010192,2]
[333563676,1722248792785,-369.39,0.00010445,2]
[333563677,1722248792808,-1000.0,0.00010551,2]
[333563678,1722248792833,-150.0,0.00010728,2]
[333563679,1722248793269,-150.0,0.00010783,2]
[333563680,1722248793316,-2429.9035,0.00010798,2]
[333563681,1722248793340,-2600.24975339,0.00010798,2]
[333563682,1722248802656,-47.17044661,0.00010798,2]
[333563683,1722248802677,-14952.82955339,0.00010798,2]
[333563684,1722248805063,-200.0,9.977e-05,2]
[333563685,1722248805084,-11603.62474661,0.00010798,2]
[333563686,1722248805336,-3103.9289,0.000108,2]
[333563687,1722248805357,-92.44635339,0.000108,2]
[333563691,1722248884939,185972.0,0.0002,90]
[333563692,1722248885984,-59442.0,6.781e-05,7]
[333563717,1722249031893,-150.0,6.78e-05,2]
[333563720,1722249031903,-300.0,6.78e-05,2]
[333563723,1722249031912,-0.0107352,6.781e-05,7]
[333563726,1722249031922,-1249.49722843,6.781e-05,2]
[333563729,1722249031933,-34589.11790004,6.781e-05,2]
[333563731,1722249031945,-1702.26819015,6.781e-05,2]
[333563733,1722249031956,-2094.32874132,6.781e-05,2]
[333563735,1722249031967,-468.09747962,6.781e-05,2]
[333563737,1722249031978,-2763.18092288,6.781e-05,2]
[333563739,1722249031988,-916.55704717,6.781e-05,2]
[333563742,1722249032000,-3603.53690901,6.781e-05,2]
[333563744,1722249032018,-789.29286824,6.781e-05,2]
[333563746,1722249032029,-20866.93584804,6.781e-05,2]
[333563747,1722249032040,-339.85299,6.781e-05,2]
[333563748,1722249032144,-698.21277035,6.781e-05,2]
[333563749,1722249032180,-3317.59,6.781e-05,2]
[333563750,1722249032191,-6990.38974753,6.781e-05,2]
[333563751,1722249032202,-259.37769393,6.781e-05,2]
[333563752,1722249032214,-129246.62369487,6.781e-05,2]
[333563753,1722249032225,-1244.77640749,6.781e-05,2]
[333563754,1722249032258,-5414.72487913,6.781e-05,2]
[333563759,1722249037972,-1857.14049247,6.781e-05,2]
[333563760,1722249038017,-4779.57044089,6.781e-05,2]
[333563761,1722249038028,-955.97027776,6.781e-05,2]
[333563762,1722249038040,-4936.4916975,6.781e-05,2]
[333563763,1722249038061,-4677.82886025,6.781e-05,2]
[333563764,1722249038072,-2113.12097902,6.781e-05,2]
[333563765,1722249038082,-420.0,7.458e-05,2]
[333563766,1722249038091,-541.62887635,8.204e-05,2]
[333563767,1722249038107,-45.37112365,8.204e-05,2]
[333563768,1722249038117,-350.58,8.219e-05,2]
[333563769,1722249038126,-457.13615326,9e-05,2]
[333563770,1722249038137,-451.57864314,9e-05,2]
[333563771,1722249038149,-3879.31648734,9e-05,2]
[333563772,1722249038166,-880.12,9e-05,2]
[333563773,1722249038182,-941.43031319,9e-05,2]
[333563774,1722249038276,-527.99648139,9e-05,2]
[333563775,1722249038288,-3362.42192168,9e-05,2]
[333563776,1722249038299,-823.0,9.024e-05,2]
[333563777,1722249038310,-2000.0,9.775e-05,2]
[333563778,1722249038320,-150.0,9.888e-05,2]
[333563779,1722249038330,-300.0,9.9e-05,3]
[333563780,1722249038340,-300.0,9.9e-05,3]
[333563781,1722249038351,-500.0,9.998e-05,2]
[333563782,1722249038362,-500.0,9.998e-05,2]
[333563783,1722249038372,-500.0,9.998e-05,2]
[333563784,1722249038383,-353.64,9.998e-05,2]
[333563785,1722249038395,-500.0,9.998e-05,2]
[333563786,1722249038404,-500.0,9.998e-05,2]
[333563787,1722249038414,-500.0,9.998e-05,2]
[333563788,1722249038423,-500.0,9.998e-05,2]
[333563789,1722249038432,-500.0,9.998e-05,2]
[333563790,1722249038441,-500.0,9.998e-05,2]
[333563791,1722249038452,-456.3,9.998e-05,2]
[333563792,1722249038461,-500.0,9.998e-05,2]
[333563793,1722249038473,-410.06907263,9.998e-05,2]
[333563794,1722249038486,-89.93092737,9.998e-05,2]
[333563795,1722249038495,-700.0,0.0001,3]
[333563796,1722249038505,-700.0,0.0001,3]
[333563797,1722249038514,-1100.0,0.000101,3]
[333563798,1722249038524,-1100.0,0.000101,3]
[333563800,1722249038533,-1400.0,0.000102,3]
[333563801,1722249038543,-1500.0,0.000102,3]
[333563802,1722249038552,-1800.0,0.000103,3]
[333563803,1722249038562,-1900.0,0.000103,3]
[333563804,1722249038571,-300.0,0.000104,3]
[333563805,1722249038580,-300.0,0.000104,3]
[333563806,1722249038590,-350.58,0.00010466,2]
[333563807,1722249038599,-300.0,0.000105,3]
[333563808,1722249038609,-12804.49110925,0.000105,2]
[333563809,1722249038618,-300.0,0.000105,3]
[333563810,1722249038627,-300.0,0.000106,3]
[333563811,1722249038637,-300.0,0.000106,3]
[333563812,1722249038648,-300.0,0.000107,3]
[333563813,1722249038657,-300.0,0.000107,3]
[333563814,1722249038666,-150.0,0.0001074,2]
[333563815,1722249038676,-150.0,0.0001074,2]
[333563816,1722249038685,-150.0,0.00010747,2]
[333563817,1722249038694,-150.0,0.00010765,2]
[333563818,1722249038703,-150.0,0.00010776,2]
[333563819,1722249038712,-150.0,0.00010789,2]
[333563820,1722249038722,-5012.28604661,0.000108,2]
[333563821,1722249038731,-950.0,0.000108,3]
[333563822,1722249038740,-85.48710165,0.000108,2]
[333563823,1722249038752,-69.56305386,0.000108,2]
[333563824,1722249038761,-1200.0,0.000108,3]
[333563825,1722249038770,-630.43775705,0.000108,2]
[333563826,1722249038781,-585.68754295,0.000108,2]
[333563827,1722249038790,-150.0,0.00010811,2]
[333563828,1722249038799,-150.0,0.00010857,2]
[333563829,1722249038808,-879.31245705,0.00010857,2]
[333563930,1722249040059,-1629.40714295,0.00010857,2]
[333563932,1722249040068,-1217.4363,0.00010857,2]
[333563934,1722249040077,-150.0,0.00010869,2]
[333563936,1722249040087,-1000.0,0.00010877,2]
[333563938,1722249040096,-150.0,0.00010887,2]
[333563940,1722249040105,-167.77557861,0.00010889,2]
[333563942,1722249040114,-8190.2991,0.00010891,2]
[333563944,1722249040123,-509.68187844,0.00010891,2]
[333563951,1722249040184,-333.6612,0.00010891,2]
[333563953,1722249040196,-157.28472156,0.00010891,2]
[333563955,1722249040206,-2525.62744981,0.00010892,2]
[333563966,1722249040330,-4974.37255019,0.00010892,2]
[333563967,1722249040339,-150.0,0.00010894,2]
[333563968,1722249040348,-629.3163,0.00010897,2]
[333563969,1722249040357,-150.0,0.00010897,2]
[333563970,1722249040366,-679.8807,0.00010898,2]
[333563971,1722249040376,-641.47,0.00010898,2]
[333563972,1722249040385,-13690.3789,0.00010898,2]
[333563973,1722249040395,-326.2628,0.00010898,2]
[333563975,1722249040404,-70837.6824,0.00010898,2]
[333563976,1722249040414,-754.2244,0.00010898,2]
[333563978,1722249040423,-2000.0,0.00010898,2]
[333563980,1722249040432,-1000.0,0.00010898,2]
[333563982,1722249040441,-155.79014209,0.00010899,2]
[333563984,1722249040450,-155.79014209,0.00010899,2]
[333563986,1722249040460,-155.79014209,0.00010899,2]
[333563988,1722249040470,-155.79014209,0.00010899,2]
[333563990,1722249040482,-151.65904075,0.00010899,2]
[333563992,1722249040491,-155.79014209,0.000109,2]
[333563994,1722249040501,-1195.08339697,0.000109,2]
[333563996,1722249040510,-1195.08339682,0.000109,2]
[333563998,1722249040521,-1195.08339682,0.000109,2]
[333564000,1722249040530,-1195.08339682,0.000109,2]
[333564002,1722249040540,-1195.08339682,0.000109,2]
[333564004,1722249040549,-1195.08339682,0.000109,2]
[333564006,1722249040559,-1195.08339682,0.000109,2]
[333564008,1722249040569,-1195.08339682,0.000109,2]
[333564010,1722249040578,-1195.08339682,0.000109,2]
[333564012,1722249040588,-150.0,0.00010908,2]
[333564014,1722249040597,-150.0,0.0001092,2]
[333564016,1722249040606,-150.0,0.00010926,2]
[333564018,1722249040616,-150.0,0.00010928,2]
[333564020,1722249040625,-150.0,0.00010938,2]
[333564044,1722249040853,-150.0,0.00010947,2]
[333564046,1722249040863,-153.65,0.00010949,2]
[333564048,1722249040872,-1370.0,0.00010957,2]
[333564050,1722249040882,-1925.0,0.00010957,2]
[333564052,1722249040892,-1553.72458316,0.00010957,2]
[333564058,1722249040944,-21.88741684,0.00010957,2]
[333564060,1722249040954,-278.11258316,0.00010957,2]
[333564062,1722249040965,-342.88741684,0.00010957,2]
[333564064,1722249040974,-320.52048299,0.00010957,2]
[333564321,1722249043597,-1195.08339682,0.000109,2]
[333564323,1722249043606,-129.47951701,0.00010957,2]
[333564325,1722249043616,-348.46208617,0.00010957,2]
[333564327,1722249043627,-77.83491383,0.00010957,2]
[333564329,1722249043636,-500.0,0.00010958,2]
[333564331,1722249043645,-1522.16508617,0.00010958,2]
[333564333,1722249043657,-278.46491383,0.00010958,2]
[333564335,1722249043666,-500.0,0.00010958,2]
[333564337,1722249043675,-500.0,0.00010958,2]
[333564339,1722249043684,-1421.54,0.00010958,2]
[333564341,1722249043693,-500.0,0.00010958,2]
[333564343,1722249043702,-2042.66,0.00010958,2]
[333564345,1722249043712,-107.53508616,0.00010958,2]
[333564348,1722249043734,-295.464,0.00010958,2]
[333564350,1722249043745,-294.38089567,0.00010958,2]
[333564352,1722249043756,-1541.68001817,0.00010958,2]
[333564354,1722249043765,-1289.52314622,0.00010958,2]
[333564357,1722249043787,-127.78685378,0.00010958,2]
[333564359,1722249043796,-359.75589481,0.00010958,2]
[333564361,1722249043807,-140.24410519,0.00010958,2]
[333564363,1722249043818,-500.0,0.00010958,2]
[333564365,1722249043827,-910.37,0.00010958,2]
[333564367,1722249043836,-500.0,0.00010958,2]
[333564369,1722249043845,-576.6,0.00010958,2]
[333564371,1722249043854,-374.8444947,0.00010958,2]
[333564373,1722249043866,-125.1555053,0.00010958,2]
[333564375,1722249043875,-500.0,0.00010958,2]
[333564377,1722249043884,-500.0,0.00010958,2]
[333564379,1722249043894,-500.0,0.00010958,2]
[333564381,1722249043904,-500.0,0.00010958,2]
[333564383,1722249043913,-100.20149593,0.00010958,2]
[333564386,1722249043936,-399.79850407,0.00010958,2]
[333564388,1722249043945,-500.0,0.00010958,2]
[333564390,1722249043954,-500.0,0.00010958,2]
[333564392,1722249043964,-500.0,0.00010958,2]
[333564394,1722249043973,-500.0,0.00010958,2]
[333564396,1722249043982,-500.0,0.00010958,2]
[333564398,1722249043991,-2369.32571947,0.00010958,2]
[333564400,1722249044003,-227.23428053,0.00010958,2]
[333564402,1722249044012,-500.0,0.00010958,2]
[333564404,1722249044021,-500.0,0.00010958,2]
[333564406,1722249044030,-500.0,0.00010958,2]
[333564408,1722249044039,-500.0,0.00010958,2]
[333564410,1722249044049,-500.0,0.00010958,2]
[333564412,1722249044059,-500.0,0.00010958,2]
[333564414,1722249044068,-500.0,0.00010958,2]
[333564415,1722249044077,-500.0,0.00010958,2]
[333564417,1722249044087,-500.0,0.00010958,2]
[333564419,1722249044096,-500.0,0.00010958,2]
[333564421,1722249044105,-1265.26,0.00010958,2]
[333564423,1722249044115,-500.0,0.00010958,2]
[333564425,1722249044124,-500.0,0.00010958,2]
[333564427,1722249044133,-500.0,0.00010958,2]
[333564429,1722249044142,-500.0,0.00010958,2]
[333564431,1722249044152,-500.0,0.00010958,2]
[333564433,1722249044165,-500.0,0.00010958,2]
[333564435,1722249044175,-604.32,0.00010958,2]
[333564437,1722249044185,-500.0,0.00010958,2]
[333564439,1722249044194,-500.0,0.00010958,2]
[333564441,1722249044204,-562.36,0.00010958,2]
[333564443,1722249044214,-500.0,0.00010958,2]
[333564445,1722249044223,-500.0,0.00010958,2]
[333564447,1722249044233,-500.0,0.00010958,2]
[333564449,1722249044243,-500.0,0.00010958,2]
[333564451,1722249044253,-500.0,0.00010958,2]
[333564453,1722249044262,-500.0,0.00010958,2]
[333564455,1722249044272,-1368.87,0.00010958,2]
[333564456,1722249044281,-1368.87,0.00010958,2]
[333564458,1722249044291,-500.0,0.00010958,2]
[333564460,1722249044301,-500.0,0.00010958,2]
[333564463,1722249044311,-500.0,0.00010958,2]
[333564465,1722249044321,-500.0,0.00010958,2]
[333564467,1722249044332,-250.0,0.00010959,2]
[333564469,1722249044342,-1137.81,0.00010959,5]
[333564471,1722249044351,-150.0,0.00010959,2]
[333564472,1722249044361,-150.0,0.00010986,2]
[333564474,1722249044371,-500.0,0.00010989,2]
[333564476,1722249044380,-500.0,0.00010989,2]
[333564478,1722249044390,-1148.37,0.00010989,2]
[333564481,1722249044401,-602.44,0.00010989,2]
[333564483,1722249044411,-2077.46,0.00010989,2]
[333564485,1722249044421,-500.0,0.00010989,2]
[333564487,1722249044431,-500.0,0.00010989,2]
[333564489,1722249044440,-500.0,0.00010989,2]
[333564491,1722249044450,-582.58,0.00010989,2]
[333564493,1722249044460,-915.74,0.00010989,2]
[333564495,1722249044471,-899.37,0.00010989,2]
[333564497,1722249044485,-500.0,0.00010989,2]
[333564499,1722249044494,-1133.86,0.00010989,2]
[333564501,1722249044504,-500.0,0.00010989,2]
[333564502,1722249044514,-500.0,0.00010989,2]
[333564504,1722249044524,-500.0,0.00010989,2]
[333564506,1722249044533,-1583.92,0.00010989,2]
[333564508,1722249044543,-554.14,0.00010989,2]
[333564510,1722249044553,-581.42,0.00010989,2]
[333564512,1722249044564,-500.0,0.00010989,2]
[333564514,1722249044573,-500.0,0.00010989,2]
[333564516,1722249044583,-2215.54,0.00010989,2]
[333564518,1722249044593,-500.0,0.00010989,2]
[333564520,1722249044602,-178.46047162,0.0001099,2]